[Event "2. Itzehoer Schach Open"]
[Site "Itzehoe, Germany"]
[Date "2023.04.29"]
[Round "2.17"]
[White "Moysich, Dirk"]
[Black "Wibmer, Michael"]
[Result "1-0"]
[TimeControl "90 min / 40 Züge + 30 min + 30 Sek pro Zug"]
[WhiteElo "1860"]
[BlackElo "1675"]

1. c4 {[%clk 01:30:53]} {[%emt 00:00:06]} e5 {[%clk 01:30:49]} {[%emt
00:00:11]} 2. g3 {[%clk 01:31:13]} {[%emt 00:00:11]} Nc6 {[%clk 01:30:56]}
{[%emt 00:00:22]} 3. Bg2 {[%clk 01:31:36]} {[%emt 00:00:07]} Bc5 {[%clk
01:31:10]} {[%emt 00:00:16]} 4. Nc3 {[%clk 01:31:27]} {[%emt 00:00:39]} d6
{[%clk 01:30:31]} {[%emt 00:01:09]} 5. a3 {[%clk 01:31:50]} {[%emt 00:00:07]}
a5 {[%clk 01:25:33]} {[%emt 00:05:28]} 6. e3 {[%clk 01:31:46]} {[%emt
00:00:34]} Nge7 {[%clk 01:20:26]} {[%emt 00:05:37]} 7. Nge2 {[%clk 01:31:50]}
{[%emt 00:00:25]} Nf5 {[%clk 01:08:07]} {[%emt 00:12:49]} 8. O-O {[%clk
01:29:36]} {[%emt 00:02:44]} h5 {[%clk 01:06:25]} {[%emt 00:02:12]} 9. h3
{[%clk 01:22:56]} {[%emt 00:07:10]} h4 {[%clk 01:02:24]} {[%emt 00:04:32]} 10.
g4 {[%clk 01:23:15]} {[%emt 00:00:10]} Nfe7 {[%clk 01:00:53]} {[%emt 00:02:01]}
11. d4 {[%clk 01:23:14]} {[%emt 00:00:31]} exd4 {[%clk 01:00:35]} {[%emt
00:00:49]} 12. exd4 {[%clk 01:23:29]} {[%emt 00:00:14]} Ba7 {[%clk 00:59:43]}
{[%emt 00:01:22]} 13. Be3 {[%clk 01:16:05]} {[%emt 00:07:54]} Ng6 {[%clk
00:46:46]} {[%emt 00:13:26]} 14. Qd3 {[%clk 01:08:21]} {[%emt 00:08:15]} O-O
{[%clk 00:43:55]} {[%emt 00:03:20]} 15. f4 {[%clk 00:54:24]} {[%emt 00:14:27]}
Re8 {[%clk 00:38:53]} {[%emt 00:05:33]} 16. Bf2 {[%clk 00:48:28]} {[%emt
00:06:26]} Bd7 {[%clk 00:31:36]} {[%emt 00:07:47]} 17. Rae1 {[%clk 00:43:23]}
{[%emt 00:05:35]} Qc8 {[%clk 00:24:42]} {[%emt 00:07:23]} 18. f5 {[%clk
00:43:00]} {[%emt 00:00:54]} Nge5 {[%clk 00:23:31]} {[%emt 00:01:41]} 19. dxe5
{[%clk 00:41:44]} {[%emt 00:01:47]} Nxe5 {[%clk 00:23:51]} {[%emt 00:00:09]} 20.
Qd2 {[%clk 00:41:28]} {[%emt 00:00:37]} Nxc4 {[%clk 00:23:09]} {[%emt
00:01:20]} 21. Qg5 {[%clk 00:41:13]} {[%emt 00:00:46]} Qd8 {[%clk 00:18:20]}
{[%emt 00:05:19]} 22. Qxd8 {[%clk 00:38:46]} Rexd8 {[%clk 00:16:59]} {[%emt
00:04:47]} 23. Bxa7 {[%clk 00:30:38]} {[%emt 00:08:39]} Rxa7 {[%clk 00:16:58]}
{[%emt 00:00:30]} 24. Nd4 {[%clk 00:29:52]} {[%emt 00:01:16]} c6 {[%clk
00:14:28]} {[%emt 00:03:00]} 25. Re2 {[%clk 00:26:32]} {[%emt 00:03:40]} d5
{[%clk 00:10:32]} {[%emt 00:04:37]} 26. a4 {[%clk 00:19:27]} {[%emt 00:07:35]}
Ra6 {[%clk 00:06:45]} {[%emt 00:04:15]} 27. b3 {[%clk 00:18:12]} {[%emt
00:01:46]} Nd6 {[%clk 00:06:22]} {[%emt 00:00:53]} 28. Nb1 {[%clk 00:16:24]}
{[%emt 00:02:20]} Rb6 {[%clk 00:06:12]} {[%emt 00:00:38]} 29. Nd2 {[%clk
00:16:49]} {[%emt 00:00:06]} c5 {[%clk 00:03:46]} {[%emt 00:02:56]} 30. N4f3
{[%clk 00:16:56]} {[%emt 00:00:21]} Rb4 {[%clk 00:03:47]} {[%emt 00:00:31]} 31.
Nxh4 {[%clk 00:16:15]} {[%emt 00:01:11]} d4 {[%clk 00:02:20]} {[%emt 00:01:58]}
32. Rc1 {[%clk 00:14:58]} {[%emt 00:01:46]} b6 {[%clk 00:01:50]} {[%emt
00:01:00]} 33. Bd5 {[%clk 00:14:58]} {[%emt 00:00:29]} Kf8 {[%clk 00:01:09]}
{[%emt 00:01:12]} 34. Nhf3 {[%clk 00:14:18]} {[%emt 00:01:09]} b5 {[%clk
00:00:54]} {[%emt 00:00:46]} 35. Rxc5 {[%clk 00:14:03]} {[%emt 00:00:45]} bxa4
{[%clk 00:01:12]} {[%emt 00:00:13]} 36. Rxa5 {[%clk 00:11:45]} {[%emt
00:02:47]} axb3 {[%clk 00:01:10]} {[%emt 00:00:32]} 37. Bxb3 {[%clk 00:09:21]}
{[%emt 00:02:53]} d3 {[%clk 00:00:37]} {[%emt 00:01:04]} 38. Re3 {[%clk
00:08:26]} {[%emt 00:01:24]} Bb5 {[%clk 00:00:54]} {[%emt 00:00:13]} 39. Ra7
{[%clk 00:08:29]} {[%emt 00:00:28]} Rc8 {[%clk 00:00:37]} {[%emt 00:00:45]} 40.
Ra1 {[%clk 00:01:17]} {[%emt 00:07:43]} Rd8 {[%clk 00:00:35]} {[%emt 00:00:32]}
41. Rae1 {[%clk 00:29:54]} {[%emt 00:01:53]} Nb7 {[%clk 00:15:04]} {[%emt
00:16:01]} 42. Re4 {[%clk 00:22:11]} {[%emt 00:08:13]} Rxe4 {[%clk 00:14:31]}
{[%emt 00:01:03]} 43. Rxe4 {[%clk 00:22:38]} {[%emt 00:00:03]} Bc6 {[%clk
00:11:46]} {[%emt 00:03:16]} 44. Rd4 {[%clk 00:22:04]} {[%emt 00:01:04]} Rxd4
{[%clk 00:11:55]} {[%emt 00:00:21]} 45. Nxd4 {[%clk 00:22:31]} {[%emt
00:00:03]} Bd7 {[%clk 00:11:50]} {[%emt 00:00:34]} 46. Kf2 {[%clk 00:19:47]}
{[%emt 00:03:14]} Ke7 {[%clk 00:11:33]} {[%emt 00:00:47]} 47. Ke3 {[%clk
00:20:15]} {[%emt 00:00:03]} Nc5 {[%clk 00:11:50]} {[%emt 00:00:12]} 48. Bc4
{[%clk 00:20:31]} {[%emt 00:00:15]} Kf6 {[%clk 00:09:05]} {[%emt 00:03:14]} 49.
Bxd3 {[%clk 00:18:42]} {[%emt 00:02:20]} Nxd3 {[%clk 00:08:14]} {[%emt
00:01:21]} 50. Kxd3 {[%clk 00:19:11]} {[%emt 00:00:01]} g6 {[%clk 00:07:38]}
{[%emt 00:01:06]} 51. Ke4 {[%clk 00:18:47]} {[%emt 00:00:53]} Bc8 {[%clk
00:07:13]} {[%emt 00:00:56]} 52. h4 {[%clk 00:18:46]} {[%emt 00:00:32]} Bb7+
{[%clk 00:07:05]} {[%emt 00:00:38]} 53. Kf4 {[%clk 00:19:03]} {[%emt 00:00:12]}
gxf5 {[%clk 00:06:47]} {[%emt 00:00:49]} 54. Nxf5 {[%clk 00:18:16]} {[%emt
00:01:16]} Bc8 {[%clk 00:06:30]} {[%emt 00:00:47]} 55. Ne4+ {[%clk 00:16:54]}
{[%emt 00:01:53]} Ke6 {[%clk 00:05:00]} {[%emt 00:04:58]} 1-0

[Event "2. Itzehoer Schach Open"]
[Site "Itzehoe, Germany"]
[Date "2023.04.29"]
[Round "2.15"]
[White "Quiring, Nikolai"]
[Black "Trapp, Hannes"]
[Result "0-1"]
[TimeControl "90 min / 40 Züge + 30 min + 30 Sek pro Zug"]
[WhiteElo "1880"]
[BlackElo "1677"]

1. d4 {[%clk 01:30:58]} d5 {[%clk 01:30:51]} {[%emt 00:00:09]} 2. c4 {[%clk
01:31:23]} {[%emt 00:00:06]} e6 {[%clk 01:31:07]} {[%emt 00:00:14]} 3. Nc3
{[%clk 01:31:46]} {[%emt 00:00:07]} c6 {[%clk 01:31:24]} {[%emt 00:00:14]} 4.
cxd5 {[%clk 01:32:08]} {[%emt 00:00:08]} exd5 {[%clk 01:31:47]} {[%emt
00:00:07]} 5. Qc2 {[%clk 01:32:17]} {[%emt 00:00:20]} Bd6 {[%clk 01:31:57]}
{[%emt 00:00:20]} 6. Nf3 {[%clk 01:32:12]} {[%emt 00:00:35]} Ne7 {[%clk
01:31:42]} {[%emt 00:00:45]} 7. Bg5 {[%clk 01:31:38]} {[%emt 00:01:03]} f6
{[%clk 01:29:24]} {[%emt 00:02:48]} 8. Bh4 {[%clk 01:30:14]} {[%emt 00:01:54]}
Bf5 {[%clk 01:29:19]} {[%emt 00:00:36]} 9. Qd2 {[%clk 01:27:52]} {[%emt
00:02:52]} O-O {[%clk 01:28:49]} {[%emt 00:01:00]} 10. e3 {[%clk 01:27:53]}
{[%emt 00:00:29]} Nd7 {[%clk 01:27:24]} {[%emt 00:01:56]} 11. Bg3 {[%clk
01:27:50]} {[%emt 00:00:32]} Bb4 {[%clk 01:27:18]} {[%emt 00:00:35]} 12. a3
{[%clk 01:25:49]} {[%emt 00:02:33]} Ba5 {[%clk 01:27:23]} {[%emt 00:00:24]} 13.
b4 {[%clk 01:25:36]} {[%emt 00:00:42]} Bb6 {[%clk 01:27:42]} {[%emt 00:00:12]}
14. Nh4 {[%clk 01:25:14]} {[%emt 00:00:52]} Re8 {[%clk 01:26:23]} {[%emt
00:01:49]} 15. Bd6 {[%clk 01:23:57]} {[%emt 00:01:47]} Be6 {[%clk 01:26:22]}
{[%emt 00:00:31]} 16. Bd3 {[%clk 01:21:34]} {[%emt 00:02:53]} Nf8 {[%clk
01:26:31]} {[%emt 00:00:21]} 17. Bxe7 {[%clk 01:20:45]} {[%emt 00:01:18]} Qxe7
{[%clk 01:26:29]} {[%emt 00:00:32]} 18. O-O {[%clk 01:20:38]} {[%emt 00:00:37]}
g6 {[%clk 01:25:44]} {[%emt 00:01:15]} 19. f4 {[%clk 01:15:35]} {[%emt
00:05:34]} Bg4 {[%clk 01:23:12]} {[%emt 00:03:02]} 20. Rae1 {[%clk 01:14:40]}
{[%emt 00:01:24]} a5 {[%clk 01:22:48]} {[%emt 00:00:56]} 21. Na4 {[%clk
01:11:28]} {[%emt 00:03:42]} Bc7 {[%clk 01:21:30]} {[%emt 00:01:47]} 22. Nc5
{[%clk 01:10:42]} {[%emt 00:01:15]} b6 {[%clk 01:20:52]} {[%emt 00:01:09]} 23.
Na6 {[%clk 01:08:10]} {[%emt 00:03:01]} Bd8 {[%clk 01:16:25]} {[%emt 00:04:58]}
24. e4 {[%clk 01:02:50]} {[%emt 00:05:50]} Qf7 {[%clk 01:09:55]} {[%emt
00:07:00]} 25. e5 {[%clk 00:59:37]} {[%emt 00:03:43]} Bc8 {[%clk 01:09:43]}
{[%emt 00:00:42]} 26. b5 {[%clk 00:56:42]} {[%emt 00:03:26]} cxb5 {[%clk
01:08:38]} {[%emt 00:01:35]} 27. Bxb5 {[%clk 00:56:41]} {[%emt 00:00:30]} Bxa6
{[%clk 01:08:27]} {[%emt 00:00:42]} 28. Bxe8 {[%clk 00:56:02]} {[%emt
00:01:08]} Qxe8 {[%clk 01:08:51]} {[%emt 00:00:06]} 29. exf6 {[%clk 00:53:01]}
{[%emt 00:03:31]} Qf7 {[%clk 01:09:05]} {[%emt 00:00:16]} 30. Rf2 {[%clk
00:51:35]} {[%emt 00:01:55]} Qxf6 {[%clk 01:08:46]} {[%emt 00:00:50]} 31. Nf3
{[%clk 00:51:22]} {[%emt 00:00:43]} Be7 {[%clk 01:08:44]} {[%emt 00:00:31]} 32.
Qe3 {[%clk 00:50:06]} {[%emt 00:01:46]} Bd6 {[%clk 01:08:37]} {[%emt 00:00:38]}
33. Ne5 {[%clk 00:50:18]} {[%emt 00:00:18]} Ra7 {[%clk 01:07:30]} {[%emt
00:01:37]} 34. Qb3 {[%clk 00:48:34]} {[%emt 00:02:14]} Bxe5 {[%clk 01:06:20]}
{[%emt 00:01:40]} 35. fxe5 {[%clk 00:45:32]} {[%emt 00:03:32]} Qd8 {[%clk
01:06:15]} {[%emt 00:00:34]} 36. Rf6 {[%clk 00:44:40]} {[%emt 00:01:21]} Rb7
{[%clk 01:05:27]} {[%emt 00:01:20]} 37. Rc1 {[%clk 00:38:15]} {[%emt 00:06:55]}
Bc4 {[%clk 01:05:32]} {[%emt 00:00:26]} 38. Qf3 {[%clk 00:35:01]} {[%emt
00:03:43]} Re7 {[%clk 01:04:20]} {[%emt 00:01:42]} 39. Qg4 {[%clk 00:30:22]}
{[%emt 00:05:07]} b5 {[%clk 01:03:04]} {[%emt 00:01:49]} 40. Rc3 {[%clk
00:28:34]} {[%emt 00:02:17]} Qe8 {[%clk 01:01:37]} {[%emt 00:01:57]} 41. Rcf3
{[%clk 00:27:19]} {[%emt 00:01:42]} Nd7 {[%clk 01:01:39]} {[%emt 00:00:31]} 42.
Rd6 {[%clk 00:24:07]} {[%emt 00:03:42]} b4 {[%clk 01:01:05]} {[%emt 00:01:04]}
43. Qg5 {[%clk 00:18:04]} {[%emt 00:06:31]} b3 {[%clk 00:59:38]} {[%emt
00:01:59]} 44. Qd2 {[%clk 00:17:27]} {[%emt 00:01:06]} a4 {[%clk 00:59:18]}
{[%emt 00:00:51]} 45. h4 {[%clk 00:17:33]} {[%emt 00:00:23]} Qb8 {[%clk
00:58:05]} {[%emt 00:01:45]} 46. Rf2 {[%clk 00:15:28]} {[%emt 00:02:34]} Nf8
{[%clk 00:57:40]} {[%emt 00:00:54]} 47. Rdf6 {[%clk 00:14:49]} {[%emt
00:01:08]} Nd7 {[%clk 00:55:36]} {[%emt 00:02:36]} 48. Rd6 {[%clk 00:13:22]}
{[%emt 00:01:56]} Qe8 {[%clk 00:53:57]} {[%emt 00:02:09]} 49. Qg5 {[%clk
00:11:38]} {[%emt 00:02:13]} Nf8 {[%clk 00:50:05]} {[%emt 00:04:23]} 50. h5
{[%clk 00:10:26]} {[%emt 00:01:42]} Ne6 {[%clk 00:50:04]} {[%emt 00:00:33]} 51.
Qg4 {[%clk 00:08:44]} {[%emt 00:02:11]} Kg7 {[%clk 00:46:55]} {[%emt 00:03:38]}
52. g3 {[%clk 00:02:45]} {[%emt 00:06:28]} Nf8 {[%clk 00:45:25]} {[%emt
00:02:00]} 53. hxg6 {[%clk 00:00:50]} {[%emt 00:02:25]} Nxg6 {[%clk 00:43:08]}
{[%emt 00:02:48]} 54. Rdf6 {[%clk 00:23:35]} {[%emt 00:07:44]} Bd3 {[%clk
01:11:15]} {[%emt 00:02:23]} 55. Rf8 {[%clk 00:19:52]} {[%emt 00:04:13]} Qd7
{[%clk 01:09:01]} {[%emt 00:02:45]} 56. Qf3 {[%clk 00:18:45]} {[%emt 00:01:37]}
Qc6 {[%clk 01:00:33]} {[%emt 00:08:58]} 57. Rf7+ {[%clk 00:18:16]} {[%emt
00:00:58]} Rxf7 {[%clk 01:00:18]} {[%emt 00:00:45]} 58. Qxf7+ {[%clk 00:18:15]}
{[%emt 00:00:31]} Kh6 {[%clk 01:00:40]} {[%emt 00:00:10]} 59. g4 {[%clk
00:11:37]} {[%emt 00:07:07]} Qc1+ {[%clk 01:00:38]} {[%emt 00:00:32]} 60. Kh2
{[%clk 00:10:32]} {[%emt 00:01:35]} Be4 {[%clk 01:00:40]} {[%emt 00:00:28]} 61.
Rf1 {[%clk 00:08:23]} {[%emt 00:02:39]} b2 {[%clk 00:59:10]} {[%emt 00:02:01]}
0-1

[Event "2. Itzehoer Schach Open"]
[Site "Itzehoe, Germany"]
[Date "2023.04.29"]
[Round "2.23"]
[White "Ploog, Jakob"]
[Black "Spieker, Hans-Joachim"]
[Result "0-1"]
[TimeControl "90 min / 40 Züge + 30 min + 30 Sek pro Zug"]
[WhiteElo "1392"]
[BlackElo "1747"]

1. e4 {[%clk 01:30:48]} {[%emt 00:00:11]} c5 {[%clk 01:30:55]} {[%emt
00:00:05]} 2. Nf3 {[%clk 01:30:06]} {[%emt 00:01:12]} Nc6 {[%clk 01:31:22]}
{[%emt 00:00:04]} 3. c3 {[%clk 01:29:41]} {[%emt 00:00:55]} d5 {[%clk
01:31:22]} {[%emt 00:00:30]} 4. exd5 {[%clk 01:27:30]} {[%emt 00:02:41]} Qxd5
{[%clk 01:31:50]} {[%emt 00:00:02]} 5. c4 {[%clk 01:26:15]} {[%emt 00:01:45]}
Qe4+ {[%clk 01:28:30]} {[%emt 00:03:48]} 6. Be2 {[%clk 01:26:03]} {[%emt
00:00:43]} Bg4 {[%clk 01:23:01]} {[%emt 00:05:59]} 7. Nc3 {[%clk 01:26:13]}
{[%emt 00:00:21]} Qe6 {[%clk 01:22:02]} {[%emt 00:01:29]} 8. O-O {[%clk
01:25:05]} {[%emt 00:01:37]} Nf6 {[%clk 01:20:26]} {[%emt 00:02:07]} 9. Re1
{[%clk 01:23:27]} {[%emt 00:02:08]} Qd7 {[%clk 01:20:41]} {[%emt 00:00:15]} 10.
b3 {[%clk 01:17:20]} {[%emt 00:06:37]} g6 {[%clk 01:20:11]} {[%emt 00:00:59]}
11. Bb2 {[%clk 01:17:36]} {[%emt 00:00:13]} Bg7 {[%clk 01:20:39]} {[%emt
00:00:02]} 12. Na4 {[%clk 01:17:08]} {[%emt 00:00:59]} b6 {[%clk 01:20:38]}
{[%emt 00:00:31]} 13. Ne5 {[%clk 01:17:05]} {[%emt 00:00:33]} Nxe5 {[%clk
01:19:36]} {[%emt 00:01:32]} 14. Bxe5 {[%clk 01:17:22]} {[%emt 00:00:13]} Bxe2
{[%clk 01:19:56]} {[%emt 00:00:10]} 15. Rxe2 {[%clk 01:17:11]} {[%emt
00:00:40]} O-O {[%clk 01:19:00]} {[%emt 00:01:27]} 16. Nc3 {[%clk 01:15:38]}
{[%emt 00:02:04]} Rfd8 {[%clk 01:16:51]} {[%emt 00:02:38]} 17. Rc1 {[%clk
01:14:46]} {[%emt 00:01:21]} e6 {[%clk 01:10:50]} {[%emt 00:06:32]} 18. Rc2
{[%clk 01:13:42]} {[%emt 00:01:35]} Qb7 {[%clk 01:07:02]} {[%emt 00:04:16]} 19.
Re3 {[%clk 01:09:48]} {[%emt 00:04:25]} Rd7 {[%clk 01:03:01]} {[%emt 00:04:31]}
20. h3 {[%clk 01:06:24]} {[%emt 00:03:55]} Rad8 {[%clk 01:01:21]} {[%emt
00:02:09]} 21. d3 {[%clk 01:05:55]} {[%emt 00:00:59]} Ne8 {[%clk 00:59:34]}
{[%emt 00:02:17]} 22. Rd2 {[%clk 01:03:00]} {[%emt 00:03:24]} Bh6 {[%clk
00:56:16]} {[%emt 00:03:48]} 23. Ne4 {[%clk 00:54:23]} {[%emt 00:09:08]} f5
{[%clk 00:50:53]} {[%emt 00:05:53]} 24. Nf6+ {[%clk 00:46:40]} {[%emt
00:08:14]} Nxf6 {[%clk 00:51:12]} {[%emt 00:00:10]} 25. Bxf6 {[%clk 00:47:02]}
{[%emt 00:00:08]} Bxe3 {[%clk 00:51:38]} {[%emt 00:00:04]} 26. fxe3 {[%clk
00:47:15]} {[%emt 00:00:18]} Rf8 {[%clk 00:49:36]} {[%emt 00:02:31]} 27. Bg5
{[%clk 00:47:33]} {[%emt 00:00:12]} Re8 {[%clk 00:47:45]} {[%emt 00:02:21]} 28.
Bh6 {[%clk 00:41:32]} {[%emt 00:06:32]} e5 {[%clk 00:45:47]} {[%emt 00:02:27]}
29. g4 {[%clk 00:38:55]} {[%emt 00:03:07]} Rf7 {[%clk 00:43:33]} {[%emt
00:02:44]} 30. e4 {[%clk 00:35:52]} {[%emt 00:03:33]} Qd7 {[%clk 00:39:16]}
{[%emt 00:04:47]} 31. gxf5 {[%clk 00:34:59]} {[%emt 00:01:23]} gxf5 {[%clk
00:38:43]} {[%emt 00:01:03]} 32. Rg2+ {[%clk 00:35:09]} {[%emt 00:00:20]} Kh8
{[%clk 00:39:11]} {[%emt 00:00:03]} 33. Qh5 {[%clk 00:33:28]} {[%emt 00:02:10]}
Rg8 {[%clk 00:38:38]} {[%emt 00:01:03]} 34. Bg5 {[%clk 00:33:37]} {[%emt
00:00:21]} Qe6 {[%clk 00:37:59]} {[%emt 00:01:09]} 35. Kh2 {[%clk 00:32:25]}
{[%emt 00:01:42]} Qg6 {[%clk 00:34:22]} {[%emt 00:04:07]} 36. Qh4 {[%clk
00:28:45]} {[%emt 00:04:10]} Rfg7 {[%clk 00:28:33]} {[%emt 00:06:19]} 37. exf5
{[%clk 00:28:05]} {[%emt 00:01:10]} Qd6 {[%clk 00:16:58]} {[%emt 00:12:06]} 38.
Bf6 {[%clk 00:23:49]} {[%emt 00:04:46]} e4+ {[%clk 00:17:18]} {[%emt 00:00:09]}
39. Kh1 {[%clk 00:24:00]} {[%emt 00:00:18]} exd3 {[%clk 00:14:14]} {[%emt
00:03:35]} 40. Qh6 {[%clk 00:20:52]} {[%emt 00:03:38]} Qd7 {[%clk 00:14:13]}
{[%emt 00:00:31]} 41. Bxg7+ {[%clk 00:21:03]} {[%emt 00:00:19]} Rxg7 {[%clk
00:14:01]} {[%emt 00:00:41]} 42. Qf6 {[%clk 00:21:14]} {[%emt 00:00:18]} Qe7
{[%clk 00:13:09]} {[%emt 00:01:23]} 43. Qc3 {[%clk 00:20:57]} {[%emt 00:00:48]}
Qb7 {[%clk 00:12:32]} {[%emt 00:01:08]} 44. Qb2 {[%clk 00:14:41]} {[%emt
00:06:46]} Qxg2+ {[%clk 00:12:54]} {[%emt 00:00:07]} 45. Qxg2 {[%clk 00:14:48]}
{[%emt 00:00:22]} Rxg2 {[%clk 00:13:23]} {[%emt 00:00:01]} 46. Kxg2 {[%clk
00:15:06]} {[%emt 00:00:12]} d2 {[%clk 00:13:52]} 0-1

[Event "2. Itzehoer Schach Open"]
[Site "Itzehoe, Germany"]
[Date "2023.04.29"]
[Round "2.25"]
[White "Schiller, Thomas"]
[Black "Schacht, David"]
[Result "0-1"]
[TimeControl "90 min / 40 Züge + 30 min + 30 Sek pro Zug"]
[WhiteElo "1678"]
[BlackElo "1541"]

1. e4 {[%clk 01:30:58]} {[%emt 00:00:01]} e5 {[%clk 01:30:59]} {[%emt
00:00:02]} 2. Nc3 {[%clk 01:31:19]} {[%emt 00:00:09]} Nc6 {[%clk 01:30:51]}
{[%emt 00:00:38]} 3. Bc4 {[%clk 01:31:29]} {[%emt 00:00:20]} Nf6 {[%clk
01:30:45]} {[%emt 00:00:36]} 4. d3 {[%clk 01:31:41]} {[%emt 00:00:17]} Be7
{[%clk 01:27:21]} {[%emt 00:03:54]} 5. Nge2 {[%clk 01:31:39]} {[%emt 00:00:32]}
Na5 {[%clk 01:25:36]} {[%emt 00:02:16]} 6. Bb3 {[%clk 01:30:14]} {[%emt
00:01:54]} Nxb3 {[%clk 01:24:22]} {[%emt 00:01:46]} 7. axb3 {[%clk 01:30:35]}
{[%emt 00:00:08]} O-O {[%clk 01:22:48]} {[%emt 00:02:04]} 8. O-O {[%clk
01:30:25]} {[%emt 00:00:39]} b6 {[%clk 01:19:36]} {[%emt 00:03:43]} 9. Ng3
{[%clk 01:30:08]} {[%emt 00:00:47]} d5 {[%clk 01:16:55]} {[%emt 00:03:10]} 10.
f4 {[%clk 01:21:17]} {[%emt 00:09:21]} Bc5+ {[%clk 01:10:35]} {[%emt 00:06:51]}
11. Kh1 {[%clk 01:21:34]} {[%emt 00:00:13]} Ng4 {[%clk 01:08:53]} {[%emt
00:02:12]} 12. Qf3 {[%clk 01:18:13]} {[%emt 00:03:50]} Nxh2 {[%clk 01:04:54]}
{[%emt 00:04:30]} 13. Qh5 {[%clk 01:17:45]} {[%emt 00:00:58]} Nxf1 {[%clk
01:03:33]} {[%emt 00:01:51]} 14. Nxf1 {[%clk 01:18:11]} {[%emt 00:00:03]} exf4
{[%clk 01:02:04]} {[%emt 00:02:00]} 15. Bxf4 {[%clk 01:18:14]} {[%emt
00:00:28]} dxe4 {[%clk 00:57:53]} {[%emt 00:04:40]} 16. Nxe4 {[%clk 01:18:36]}
{[%emt 00:00:08]} Bd6 {[%clk 00:54:20]} {[%emt 00:04:03]} 17. Nxd6 {[%clk
01:13:07]} {[%emt 00:05:59]} cxd6 {[%clk 00:53:40]} {[%emt 00:01:10]} 18. Ng3
{[%clk 01:13:14]} {[%emt 00:00:22]} Qf6 {[%clk 00:47:15]} {[%emt 00:06:55]} 19.
Bd2 {[%clk 01:13:24]} {[%emt 00:00:21]} Qg6 {[%clk 00:46:53]} {[%emt 00:00:52]}
20. Qf3 {[%clk 01:12:04]} {[%emt 00:01:50]} Bg4 {[%clk 00:42:49]} {[%emt
00:04:35]} 21. Qf2 {[%clk 01:12:32]} {[%emt 00:00:01]} Rfe8 {[%clk 00:41:20]}
{[%emt 00:01:58]} 22. Ra4 {[%clk 01:12:52]} {[%emt 00:00:11]} Bd1 {[%clk
00:39:40]} {[%emt 00:02:10]} 0-1